[Event "Polofinale MCR junioru 2023"]
[Site "Czech Republic"]
[Date "2023.11.11"]
[Round "1.22"]
[White "Sprinar, Michal"]
[Black "Bezdek, Tomas"]
[Result "1-0"]
[TimeControl "90 min per 40 moves + 15 min + 30 sec / move from move 1"]
[WhiteFideId "23714190"]
[BlackFideId "23733551"]
[WhiteElo "1742"]
[BlackElo "2078"]

1. e4 {[%clk 01:30:58]} e6 {[%clk 01:30:56]} {[%emt 00:00:05]} 2. d4 {[%clk
01:31:25]} {[%emt 00:00:04]} d5 {[%clk 01:31:22]} {[%emt 00:00:03]} 3. Nd2
{[%clk 01:31:51]} {[%emt 00:00:04]} c5 {[%clk 01:31:44]} {[%emt 00:00:08]} 4.
exd5 {[%clk 01:32:16]} {[%emt 00:00:06]} Qxd5 {[%clk 01:32:06]} {[%emt
00:00:08]} 5. Ngf3 {[%clk 01:30:41]} {[%emt 00:02:05]} cxd4 {[%clk 01:32:19]}
{[%emt 00:00:17]} 6. Bc4 {[%clk 01:29:26]} {[%emt 00:01:44]} Qd6 {[%clk
01:32:44]} {[%emt 00:00:05]} 7. O-O {[%clk 01:29:05]} {[%emt 00:00:51]} Nf6
{[%clk 01:33:01]} {[%emt 00:00:13]} 8. Nb3 {[%clk 01:28:26]} {[%emt 00:01:10]}
Nc6 {[%clk 01:33:20]} {[%emt 00:00:11]} 9. Nbxd4 {[%clk 01:27:34]} {[%emt
00:01:22]} Nxd4 {[%clk 01:33:34]} {[%emt 00:00:16]} 10. Qxd4 {[%clk 01:25:55]}
{[%emt 00:02:08]} a6 {[%clk 01:32:01]} {[%emt 00:02:03]} 11. Bf4 {[%clk
01:20:02]} {[%emt 00:06:22]} Qxd4 {[%clk 01:32:22]} {[%emt 00:00:10]} 12. Nxd4
{[%clk 01:20:27]} {[%emt 00:00:05]} Be7 {[%clk 01:31:31]} {[%emt 00:01:20]} 13.
Rfd1 {[%clk 01:16:02]} {[%emt 00:04:53]} O-O {[%clk 01:30:57]} {[%emt
00:01:06]} 14. a4 {[%clk 01:09:03]} {[%emt 00:07:28]} Bd7 {[%clk 01:27:41]}
{[%emt 00:03:46]} 15. c3 {[%clk 01:00:36]} {[%emt 00:08:56]} Rac8 {[%clk
01:27:26]} {[%emt 00:00:47]} 16. Bb3 {[%clk 00:57:43]} {[%emt 00:03:19]} Rfd8
{[%clk 01:25:10]} {[%emt 00:02:50]} 17. f3 {[%clk 00:44:27]} {[%emt 00:13:46]}
Bc5 {[%clk 01:20:35]} {[%emt 00:05:04]} 18. Kf1 {[%clk 00:40:11]} {[%emt
00:04:43]} h6 {[%clk 01:17:42]} {[%emt 00:03:27]} 19. Be5 {[%clk 00:38:10]}
{[%emt 00:02:30]} Ne8 {[%clk 01:10:08]} {[%emt 00:08:05]} 20. Rd2 {[%clk
00:26:53]} {[%emt 00:11:47]} Kf8 {[%clk 01:04:55]} {[%emt 00:05:43]} 21. Rad1
{[%clk 00:25:40]} {[%emt 00:01:42]} Ke7 {[%clk 01:05:06]} {[%emt 00:00:19]} 22.
Bc2 {[%clk 00:22:51]} {[%emt 00:03:14]} b5 {[%clk 01:00:25]} {[%emt 00:05:18]}
23. axb5 {[%clk 00:21:16]} {[%emt 00:02:05]} axb5 {[%clk 01:00:46]} {[%emt
00:00:08]} 24. Be4 {[%clk 00:18:06]} {[%emt 00:03:37]} f6 {[%clk 00:39:37]}
{[%emt 00:21:42]} 25. Bg3 {[%clk 00:13:51]} {[%emt 00:04:43]} Nd6 {[%clk
00:35:46]} {[%emt 00:04:23]} 26. Bxd6+ {[%clk 00:06:18]} {[%emt 00:08:03]} Bxd6
{[%clk 00:35:42]} {[%emt 00:00:34]} 27. g3 {[%clk 00:06:09]} {[%emt 00:00:39]}
b4 {[%clk 00:34:10]} {[%emt 00:02:03]} 28. cxb4 {[%clk 00:02:28]} {[%emt
00:04:12]} Bxb4 {[%clk 00:34:27]} {[%emt 00:00:12]} 29. Rc2 {[%clk 00:02:47]}
{[%emt 00:00:05]} Rxc2 {[%clk 00:21:58]} {[%emt 00:13:04]} 30. Bxc2 {[%clk
00:03:09]} {[%emt 00:00:08]} Bc5 {[%clk 00:22:23]} {[%emt 00:00:04]} 31. Kg2
{[%clk 00:02:01]} {[%emt 00:01:38]} Rc8 {[%clk 00:20:37]} {[%emt 00:02:17]} 32.
Ne2 {[%clk 00:00:32]} {[%emt 00:02:00]} Bd6 {[%clk 00:20:31]} {[%emt 00:00:35]}
33. Bd3 {[%clk 00:00:36]} {[%emt 00:00:27]} Rb8 {[%clk 00:20:35]} {[%emt
00:00:26]} 34. Rb1 {[%clk 00:00:37]} {[%emt 00:00:27]} Bc6 {[%clk 00:20:48]}
{[%emt 00:00:19]} 35. Nd4 {[%clk 00:00:44]} {[%emt 00:00:23]} Bd5 {[%clk
00:20:33]} {[%emt 00:00:45]} 36. b3 {[%clk 00:00:32]} {[%emt 00:00:42]} Be5
{[%clk 00:19:34]} {[%emt 00:01:28]} 37. Nb5 {[%clk 00:00:37]} {[%emt 00:00:26]}
Ra8 {[%clk 00:18:52]} {[%emt 00:01:10]} 38. Kf2 {[%clk 00:00:31]} {[%emt
00:00:37]} Ra2+ {[%clk 00:19:05]} {[%emt 00:00:17]} 39. Be2 {[%clk 00:00:57]}
{[%emt 00:00:05]} Bc6 {[%clk 00:18:43]} {[%emt 00:00:52]} 40. Ke3 {[%clk
00:00:38]} {[%emt 00:00:49]} Rxe2+ {[%clk 00:16:43]} {[%emt 00:02:31]} 41. Kxe2
{[%clk 00:00:59]} {[%emt 00:00:08]} Bxb5+ {[%clk 00:17:07]} {[%emt 00:00:06]}
42. Ke3 {[%clk 00:01:24]} {[%emt 00:00:04]} f5 {[%clk 00:15:55]} {[%emt
00:01:44]} 43. Rc1 {[%clk 00:12:06]} {[%emt 00:05:17]} g5 {[%clk 00:29:08]}
{[%emt 00:02:48]} 44. Rc5 {[%clk 00:12:06]} {[%emt 00:00:27]} f4+ {[%clk
00:29:20]} {[%emt 00:00:21]} 45. Ke4 {[%clk 00:12:29]} {[%emt 00:00:05]} fxg3
{[%clk 00:29:26]} {[%emt 00:00:25]} 46. hxg3 {[%clk 00:12:54]} {[%emt
00:00:05]} Bxg3 {[%clk 00:29:45]} {[%emt 00:00:11]} 47. Rxb5 {[%clk 00:13:18]}
{[%emt 00:00:06]} h5 {[%clk 00:30:09]} {[%emt 00:00:06]} 48. Rxg5 {[%clk
00:13:40]} {[%emt 00:00:09]} 1-0

[Event "Polofinale MCR junioru 2023"]
[Site "Czech Republic"]
[Date "2023.11.11"]
[Round "1.23"]
[White "Kubiczek, Michal"]
[Black "Veny, Jaume"]
[Result "1-0"]
[TimeControl "90 min per 40 moves + 15 min + 30 sec / move from move 1"]
[WhiteFideId "23706996"]
[BlackFideId "397792"]
[WhiteElo "2068"]
[BlackElo "1729"]

1. d4 {[%clk 01:30:57]} {[%emt 00:00:02]} c5 {[%clk 01:30:28]} {[%emt
00:00:33]} 2. d5 {[%clk 01:30:59]} {[%emt 00:00:27]} e6 {[%clk 01:30:42]}
{[%emt 00:00:16]} 3. c4 {[%clk 01:29:41]} {[%emt 00:01:47]} exd5 {[%clk
01:31:05]} {[%emt 00:00:07]} 4. cxd5 {[%clk 01:30:01]} {[%emt 00:00:10]} d6
{[%clk 01:31:31]} {[%emt 00:00:05]} 5. Nc3 {[%clk 01:29:44]} {[%emt 00:00:46]}
g6 {[%clk 01:30:28]} {[%emt 00:01:34]} 6. Nf3 {[%clk 01:25:28]} {[%emt
00:04:46]} Nf6 {[%clk 01:27:36]} {[%emt 00:03:23]} 7. Nd2 {[%clk 01:23:29]}
{[%emt 00:02:26]} b5 {[%clk 01:13:45]} {[%emt 00:14:23]} 8. Nxb5 {[%clk
01:20:16]} {[%emt 00:03:44]} Nxd5 {[%clk 01:04:58]} {[%emt 00:09:17]} 9. Qa4
{[%clk 01:13:29]} {[%emt 00:07:16]} Bd7 {[%clk 00:59:00]} {[%emt 00:06:28]} 10.
Qe4+ {[%clk 01:10:24]} {[%emt 00:03:34]} Be6 {[%clk 00:58:05]} {[%emt
00:01:26]} 11. Nc4 {[%clk 00:56:17]} {[%emt 00:14:36]} Na6 {[%clk 00:40:52]}
{[%emt 00:17:44]} 12. Bf4 {[%clk 00:41:19]} {[%emt 00:15:27]} Nxf4 {[%clk
00:40:29]} {[%emt 00:00:54]} 13. Qxf4 {[%clk 00:39:22]} {[%emt 00:02:27]} Bxc4
{[%clk 00:38:56]} {[%emt 00:02:04]} 14. Qxc4 {[%clk 00:39:32]} {[%emt
00:00:19]} Qa5+ {[%clk 00:22:48]} {[%emt 00:16:39]} 15. Nc3 {[%clk 00:38:40]}
{[%emt 00:01:22]} Bg7 {[%clk 00:16:44]} {[%emt 00:06:34]} 16. Qe4+ {[%clk
00:22:46]} {[%emt 00:16:24]} Kd7 {[%clk 00:17:01]} {[%emt 00:00:13]} 17. Qa4+
{[%clk 00:22:30]} {[%emt 00:00:45]} Qxa4 {[%clk 00:17:24]} {[%emt 00:00:08]} 18.
Nxa4 {[%clk 00:22:58]} {[%emt 00:00:02]} Nb4 {[%clk 00:15:48]} {[%emt
00:02:06]} 19. Rd1 {[%clk 00:22:02]} {[%emt 00:01:25]} Kc7 {[%clk 00:15:32]}
{[%emt 00:00:48]} 20. a3 {[%clk 00:20:15]} {[%emt 00:02:17]} Nc2+ {[%clk
00:14:57]} {[%emt 00:01:04]} 21. Kd2 {[%clk 00:20:39]} {[%emt 00:00:07]} Nd4
{[%clk 00:15:23]} {[%emt 00:00:04]} 22. e3 {[%clk 00:19:14]} {[%emt 00:01:42]}
Nc6 23. Bc4 {[%clk 00:16:04]} {[%emt 00:03:04]} f5 24. Ke2 {[%clk 00:15:19]}
{[%emt 00:05:43]} Rhd8 25. Rd2 {[%clk 00:14:14]} {[%emt 00:01:36]} Rab8 26. Rc1
{[%clk 00:11:27]} {[%emt 00:06:38]} Na5 27. b4 {[%clk 00:11:08]} {[%emt
00:04:54]} Nb7 {[%clk 00:05:17]} 28. Bd5 {[%clk 00:11:01]} {[%emt 00:03:06]}
Bf8 29. Rdc2 {[%clk 00:10:35]} {[%emt 00:00:55]} Kd7 {[%clk 00:05:28]} 30. Bxb7
{[%clk 00:11:00]} Rxb7 {[%clk 00:05:41]} 31. bxc5 {[%clk 00:11:00]} dxc5 {[%clk
00:05:41]} {[%emt 00:00:20]} 32. Nxc5+ {[%clk 00:11:22]} Bxc5 {[%clk 00:05:41]}
33. Rxc5 {[%clk 00:11:22]} Rb2+ {[%clk 00:05:41]} 34. Kf3 {[%clk 00:10:45]}
{[%emt 00:01:48]} Ke7 {[%clk 00:06:01]} 35. Rc7+ {[%clk 00:10:45]} Rd7 36.
Rxd7+ {[%clk 00:10:45]} Kxd7 {[%clk 00:06:27]} {[%emt 00:03:50]} 37. Rc5 {[%emt
00:03:33]} a6 {[%emt 00:00:49]} 38. h4 {[%clk 00:07:41]} Kd6 {[%clk 00:03:19]}
{[%emt 00:04:22]} 39. Ra5 {[%clk 00:06:32]} Rb6 {[%clk 00:03:19]} {[%emt
00:00:28]} 40. g4 {[%clk 00:05:33]} fxg4+ {[%clk 00:03:00]} {[%emt 00:02:19]}
41. Kxg4 {[%emt 00:02:12]} h6 42. f4 {[%clk 00:04:36]} {[%emt 00:00:41]} Ke6
{[%clk 00:13:35]} {[%emt 00:04:58]} 43. h5 {[%clk 00:18:43]} {[%emt 00:02:23]}
gxh5+ {[%clk 00:12:39]} {[%emt 00:01:26]} 44. Kxh5 {[%clk 00:18:15]} {[%emt
00:00:58]} Ke7 {[%clk 00:12:17]} {[%emt 00:00:52]} 45. e4 {[%clk 00:18:20]}
{[%emt 00:00:24]} Rc6 {[%clk 00:11:44]} {[%emt 00:01:04]} 46. f5 {[%clk
00:16:12]} {[%emt 00:02:38]} Rf6 {[%clk 00:07:57]} {[%emt 00:04:17]} 47. Kg4
{[%clk 00:14:20]} {[%emt 00:02:22]} Kf7 {[%clk 00:07:15]} {[%emt 00:01:12]} 48.
e5 {[%clk 00:13:55]} {[%emt 00:00:55]} Rc6 {[%clk 00:07:40]} {[%emt 00:00:06]}
49. Kh5 {[%clk 00:13:31]} {[%emt 00:00:54]} Kg7 {[%clk 00:07:39]} {[%emt
00:00:31]} 50. e6 {[%clk 00:13:13]} {[%emt 00:00:47]} Rb6 {[%clk 00:05:58]}
{[%emt 00:02:12]} 51. Re5 {[%clk 00:12:20]} {[%emt 00:01:22]} Kf6 {[%clk
00:00:59]} {[%emt 00:05:28]} 52. Re3 {[%clk 00:09:53]} {[%emt 00:02:58]} Rb7
{[%clk 00:01:05]} {[%emt 00:00:25]} 53. Kxh6 {[%clk 00:10:17]} {[%emt
00:00:06]} Re7 {[%clk 00:00:53]} {[%emt 00:00:42]} 54. Rf3 {[%clk 00:10:39]}
{[%emt 00:00:07]} a5 {[%clk 00:01:09]} {[%emt 00:00:14]} 55. Kh5 {[%clk
00:10:05]} {[%emt 00:01:04]} Rg7 {[%clk 00:01:31]} {[%emt 00:00:09]} 56. Kh4
{[%clk 00:09:48]} {[%emt 00:00:46]} Rg5 {[%clk 00:00:32]} {[%emt 00:01:29]} 57.
Kh3 {[%clk 00:08:04]} {[%emt 00:02:14]} Ke7 {[%clk 00:00:40]} {[%emt 00:00:23]}
58. f6+ {[%clk 00:07:47]} {[%emt 00:00:48]} Kxe6 {[%clk 00:00:54]} {[%emt
00:00:15]} 59. f7 {[%clk 00:08:09]} {[%emt 00:00:07]} 1-0

[Event "Polofinale MCR junioru 2023"]
[Site "Czech Republic"]
[Date "2023.11.11"]
[Round "1.24"]
[White "Svadlenka, Dominik"]
[Black "Bohacek, Jan Andrej"]
[Result "1-0"]
[TimeControl "90 min per 40 moves + 15 min + 30 sec / move from move 1"]
[WhiteFideId "23716258"]
[BlackFideId "23727357"]
[WhiteElo "1725"]
[BlackElo "2066"]

1. d4 {[%clk 01:30:58]} d5 {[%clk 01:30:53]} {[%emt 00:00:08]} 2. c4 {[%clk
01:31:25]} {[%emt 00:00:04]} e6 {[%clk 01:31:15]} {[%emt 00:00:08]} 3. Nc3
{[%clk 01:31:49]} {[%emt 00:00:06]} Nf6 {[%clk 01:31:37]} {[%emt 00:00:07]} 4.
Bg5 {[%clk 01:32:15]} {[%emt 00:00:04]} dxc4 {[%clk 01:31:13]} {[%emt
00:00:55]} 5. e3 {[%clk 01:32:10]} {[%emt 00:00:34]} a6 {[%clk 01:19:12]}
{[%emt 00:12:31]} 6. Bxc4 {[%clk 01:31:32]} {[%emt 00:01:08]} b5 {[%clk
01:16:08]} {[%emt 00:03:34]} 7. Bd3 {[%clk 01:26:42]} {[%emt 00:05:20]} Nbd7
{[%clk 01:13:00]} {[%emt 00:03:38]} 8. Nf3 {[%clk 01:20:56]} {[%emt 00:06:16]}
c5 {[%clk 01:08:27]} {[%emt 00:05:04]} 9. O-O {[%clk 01:17:34]} {[%emt
00:03:52]} Bb7 {[%clk 00:59:42]} {[%emt 00:09:14]} 10. dxc5 {[%clk 01:08:48]}
{[%emt 00:09:17]} Nxc5 {[%clk 00:56:15]} {[%emt 00:03:57]} 11. Bc2 {[%clk
01:06:54]} {[%emt 00:02:23]} Qc7 {[%clk 00:40:49]} {[%emt 00:15:57]} 12. Rc1
{[%clk 01:04:39]} {[%emt 00:02:45]} Qb6 {[%clk 00:32:28]} {[%emt 00:08:50]} 13.
Qe2 {[%clk 00:59:33]} {[%emt 00:05:36]} Nd5 {[%clk 00:23:21]} {[%emt 00:09:37]}
14. Nxd5 {[%clk 00:51:34]} {[%emt 00:08:30]} Bxd5 {[%clk 00:23:35]} {[%emt
00:00:16]} 15. b3 {[%clk 00:51:08]} {[%emt 00:00:56]} Qb7 {[%clk 00:20:21]}
{[%emt 00:03:43]} 16. Rfd1 {[%clk 00:46:13]} {[%emt 00:05:25]} f6 {[%clk
00:17:38]} {[%emt 00:03:14]} 17. Bf4 {[%clk 00:43:51]} {[%emt 00:02:52]} Be7
{[%clk 00:14:00]} {[%emt 00:04:08]} 18. e4 {[%clk 00:27:12]} {[%emt 00:17:09]}
Bc6 {[%clk 00:06:42]} {[%emt 00:07:48]} 19. Nd4 {[%clk 00:24:01]} {[%emt
00:03:41]} e5 {[%clk 00:04:10]} {[%emt 00:03:02]} 20. Nxc6 {[%clk 00:24:12]}
{[%emt 00:00:20]} Qxc6 {[%clk 00:04:12]} {[%emt 00:00:28]} 21. Be3 {[%clk
00:21:02]} {[%emt 00:03:40]} Ne6 {[%clk 00:02:13]} {[%emt 00:02:29]} 22. Bd3
{[%clk 00:19:21]} {[%emt 00:02:11]} Qb7 {[%clk 00:02:17]} {[%emt 00:00:27]} 23.
a4 {[%clk 00:18:41]} {[%emt 00:01:10]} Rb8 {[%clk 00:02:40]} {[%emt 00:00:07]}
24. axb5 {[%clk 00:14:36]} {[%emt 00:04:35]} axb5 {[%clk 00:03:01]} {[%emt
00:00:09]} 25. Ra1 {[%clk 00:12:24]} {[%emt 00:02:43]} Nd4 {[%clk 00:02:30]}
{[%emt 00:01:00]} 26. Bxd4 {[%clk 00:11:20]} {[%emt 00:01:34]} exd4 {[%clk
00:02:53]} {[%emt 00:00:07]} 27. Ra5 {[%clk 00:11:00]} {[%emt 00:00:50]} O-O
{[%clk 00:02:34]} {[%emt 00:00:49]} 28. Bxb5 {[%clk 00:10:15]} {[%emt
00:01:14]} Kh8 {[%clk 00:02:28]} {[%emt 00:00:36]} 29. Bc4 {[%clk 00:10:06]}
{[%emt 00:00:40]} Bb4 {[%clk 00:02:01]} {[%emt 00:00:58]} 30. Rd5 {[%clk
00:09:34]} {[%emt 00:01:01]} Bc3 {[%clk 00:02:09]} {[%emt 00:00:22]} 31. Qg4
{[%clk 00:06:46]} {[%emt 00:03:18]} Rbd8 {[%clk 00:01:41]} {[%emt 00:00:58]} 32.
Rh5 {[%clk 00:05:38]} {[%emt 00:01:38]} Qa7 {[%clk 00:01:26]} {[%emt 00:00:45]}
33. Rxh7+ {[%clk 00:05:55]} {[%emt 00:00:13]} 1-0

[Event "Polofinale MCR junioru 2023"]
[Site "Czech Republic"]
[Date "2023.11.11"]
[Round "1.25"]
[White "Kulhanek, Jachym"]
[Black "Vlcek, Vojtech"]
[Result "0-1"]
[TimeControl "90 min per 40 moves + 15 min + 30 sec / move from move 1"]
[WhiteFideId "23716193"]
[BlackFideId "23728647"]
[WhiteElo "2056"]
[BlackElo "1703"]

1. e4 {[%clk 01:30:57]} {[%emt 00:00:01]} e5 {[%clk 01:30:50]} {[%emt
00:00:10]} 2. f4 {[%clk 01:31:04]} {[%emt 00:00:23]} d5 {[%clk 01:30:29]}
{[%emt 00:00:51]} 3. exd5 {[%clk 01:31:20]} {[%emt 00:00:14]} e4 {[%clk
01:29:00]} {[%emt 00:01:59]} 4. Nc3 {[%clk 01:27:02]} {[%emt 00:04:47]} Nf6
{[%clk 01:29:15]} {[%emt 00:00:15]} 5. Bb5+ {[%clk 01:20:30]} {[%emt 00:07:02]}
Bd7 {[%clk 01:26:15]} {[%emt 00:03:30]} 6. Qe2 {[%clk 01:18:41]} {[%emt
00:02:19]} Bd6 {[%clk 01:24:33]} {[%emt 00:02:13]} 7. Bxd7+ {[%clk 01:16:10]}
{[%emt 00:03:01]} Nbxd7 {[%clk 01:24:50]} {[%emt 00:00:12]} 8. d3 {[%clk
01:15:43]} {[%emt 00:00:57]} O-O {[%clk 01:22:32]} {[%emt 00:02:49]} 9. Nxe4
{[%clk 01:03:07]} {[%emt 00:13:06]} Re8 {[%clk 01:22:20]} {[%emt 00:00:42]} 10.
Qf3 {[%clk 01:00:47]} {[%emt 00:02:50]} Nc5 {[%clk 01:20:12]} {[%emt 00:02:38]}
11. Ne2 {[%clk 00:58:33]} {[%emt 00:02:44]} Ncxe4 {[%clk 01:19:51]} {[%emt
00:00:51]} 12. dxe4 {[%clk 00:58:55]} {[%emt 00:00:09]} Nxe4 {[%clk 01:20:12]}
{[%emt 00:00:09]} 13. O-O {[%clk 00:57:31]} {[%emt 00:01:53]} Bc5+ {[%clk
01:20:25]} {[%emt 00:00:17]} 14. Be3 {[%clk 00:51:29]} {[%emt 00:06:33]} Nd2
{[%clk 01:20:05]} {[%emt 00:00:49]} 0-1

[Event "Polofinale MCR junioru 2023"]
[Site "Czech Republic"]
[Date "2023.11.11"]
[Round "1.26"]
[White "Svadlenka, Michal"]
[Black "Hozda, Max"]
[Result "0-1"]
[TimeControl "90 min per 40 moves + 15 min + 30 sec / move from move 1"]
[WhiteFideId "23717068"]
[BlackFideId "23725958"]
[WhiteElo "1689"]
[BlackElo "2045"]

1. e4 {[%clk 01:30:58]} {[%emt 00:00:02]} Nf6 {[%clk 01:30:26]} {[%emt
00:00:35]} 2. e5 {[%clk 01:31:20]} {[%emt 00:00:07]} Nd5 {[%clk 01:30:50]}
{[%emt 00:00:05]} 3. d4 {[%clk 01:31:34]} {[%emt 00:00:17]} d6 {[%clk
01:31:15]} {[%emt 00:00:06]} 4. c4 {[%clk 01:31:54]} {[%emt 00:00:10]} Nb6
{[%clk 01:31:40]} {[%emt 00:00:05]} 5. exd6 {[%clk 01:32:11]} {[%emt 00:00:13]}
cxd6 {[%clk 01:31:42]} {[%emt 00:00:28]} 6. Nc3 {[%clk 01:32:27]} {[%emt
00:00:14]} g6 {[%clk 01:31:18]} {[%emt 00:00:54]} 7. Nf3 {[%clk 01:32:20]}
{[%emt 00:00:37]} Bg7 {[%clk 01:31:38]} {[%emt 00:00:10]} 8. Be3 {[%clk
01:32:10]} {[%emt 00:00:40]} Nc6 {[%clk 01:30:47]} {[%emt 00:01:21]} 9. Be2
{[%clk 01:31:34]} {[%emt 00:01:05]} O-O {[%clk 01:30:40]} {[%emt 00:00:38]} 10.
O-O {[%clk 01:31:42]} {[%emt 00:00:22]} Bg4 {[%clk 01:31:02]} {[%emt 00:00:08]}
11. b3 {[%clk 01:31:24]} {[%emt 00:00:48]} d5 {[%clk 01:30:25]} {[%emt
00:01:07]} 12. c5 {[%clk 01:24:48]} {[%emt 00:07:07]} Nc8 {[%clk 01:30:18]}
{[%emt 00:00:06]} 13. Rb1 {[%clk 01:18:33]} {[%emt 00:06:45]} e6 {[%clk
01:29:29]} {[%emt 00:01:50]} 14. b4 {[%clk 01:17:33]} {[%emt 00:01:30]} a6
{[%clk 01:28:35]} {[%emt 00:01:23]} 15. a4 {[%clk 01:16:04]} {[%emt 00:01:59]}
N8e7 {[%clk 01:28:32]} {[%emt 00:00:32]} 16. b5 {[%clk 01:11:12]} {[%emt
00:05:23]} Na5 {[%clk 01:27:56]} {[%emt 00:01:06]} 17. Bf4 {[%clk 01:01:27]}
{[%emt 00:10:15]} Nf5 {[%clk 01:25:25]} {[%emt 00:03:01]} 18. Ne5 {[%clk
01:00:03]} {[%emt 00:01:53]} Bxe2 {[%clk 01:21:58]} {[%emt 00:03:57]} 19. Nxe2
{[%clk 01:00:19]} {[%emt 00:00:15]} f6 {[%clk 01:16:17]} {[%emt 00:06:11]} 20.
Nf3 {[%clk 00:59:31]} {[%emt 00:01:17]} Re8 {[%clk 01:15:55]} {[%emt 00:00:52]}
21. Nc3 {[%clk 00:56:08]} {[%emt 00:03:53]} Qd7 {[%clk 01:12:52]} {[%emt
00:03:34]} 22. Re1 {[%clk 00:55:14]} {[%emt 00:01:23]} Nc4 {[%clk 01:12:10]}
{[%emt 00:01:12]} 23. Qd3 {[%clk 00:51:47]} {[%emt 00:03:57]} Rad8 {[%clk
01:09:58]} {[%emt 00:02:43]} 24. Nd2 {[%clk 00:51:35]} {[%emt 00:00:43]} g5
{[%clk 00:54:55]} {[%emt 00:15:32]} 25. Bg3 {[%clk 00:50:50]} {[%emt 00:01:15]}
Nxd2 {[%clk 00:39:49]} {[%emt 00:15:36]} 26. Qxd2 {[%clk 00:51:10]} {[%emt
00:00:10]} h6 {[%clk 00:35:15]} {[%emt 00:05:05]} 27. bxa6 {[%clk 00:50:34]}
{[%emt 00:01:05]} bxa6 {[%clk 00:33:21]} {[%emt 00:02:24]} 28. Rb6 {[%clk
00:50:38]} {[%emt 00:00:26]} e5 {[%clk 00:32:22]} {[%emt 00:01:29]} 29. dxe5
{[%clk 00:46:05]} {[%emt 00:05:02]} fxe5 {[%clk 00:32:34]} {[%emt 00:00:17]} 30.
Rxa6 {[%clk 00:42:32]} {[%emt 00:04:04]} Qc8 {[%clk 00:14:51]} {[%emt
00:18:13]} 31. Ra5 {[%clk 00:34:37]} {[%emt 00:08:25]} Qc6 {[%clk 00:15:11]}
{[%emt 00:00:09]} 32. Rb1 {[%clk 00:30:26]} {[%emt 00:04:42]} d4 {[%clk
00:14:45]} {[%emt 00:00:56]} 33. Na2 {[%clk 00:23:56]} {[%emt 00:07:00]} e4
{[%clk 00:10:00]} {[%emt 00:05:15]} 34. Rb6 {[%clk 00:18:10]} {[%emt 00:06:16]}
e3 {[%clk 00:09:59]} {[%emt 00:00:31]} 35. Qe1 {[%clk 00:02:32]} {[%emt
00:16:07]} e2 {[%clk 00:03:59]} {[%emt 00:06:31]} 36. Rxc6 {[%clk 00:00:50]}
{[%emt 00:02:12]} d3 {[%clk 00:04:28]} {[%emt 00:00:01]} 37. Rb5 {[%clk
00:00:33]} {[%emt 00:00:47]} d2 {[%clk 00:04:46]} {[%emt 00:00:11]} 38. Rb1
{[%clk 00:00:38]} {[%emt 00:00:25]} dxe1=Q+ {[%clk 00:04:35]} {[%emt 00:00:41]}
39. Rxe1 {[%clk 00:01:06]} {[%emt 00:00:02]} Rd1 {[%clk 00:04:39]} {[%emt
00:00:25]} 40. f3 {[%clk 00:01:02]} {[%emt 00:00:35]} Bd4+ {[%clk 00:04:57]}
{[%emt 00:00:12]} 0-1